Workbook

Sheet Труба_LC
B2: ПРОТОКОЛ
B3: контроля геометрических параметров трубы с резьбой LC
C4: Номинальный диаметр трубы | F4: Группа прочности | H4: Допуски на натяг по КККР | J4: Контролер | L4: Дата | N4: Смена | O4: А | P4: Б | Q4: В | R4: Г
C5: 168.28 | F5: Q125 | G5: ниж. откл. | H5: -1.58 | L5: =TODAY() -> 2019-02-02 | N5: Сторона трубы | O5: муфтовая сторона | P5: ниппельная сторона
C6: Номинальная толщина стенки трубы | F6: Партия ТО | G6: верх. откл. | H6: 1.58 | J6: подпись | N6: Диаметр | O6: 168.28 | P6: 168.3 | Q6: 177.8 | R6: 178 | S6: 193.68 | T6: 193.7 | U6: 194 | V6: 219.08 | W6: 219.1 | X6: 244.48 | Y6: 244.5 | Z6: 245
C7: 13.06 | L7: Смена | N7: Толщина стенки | O7: 7.3 | P7: 7.32 | Q7: 8.05 | R7: 8.1 | S7: 8.3 | T7: 8.33 | U7: 8.89 | V7: 8.9 | W7: 8.94 | X7: 9.19 | Y7: 9.2 | Z7: 9.5 | AA7: 9.52 | AB7: 9.53 | AC7: 9.65 | AD7: 9.7 | AE7: 10 | AF7: 10.03 | AG7: 10.16 | AH7: 10.2 | AI7: 10.36 | AJ7: 10.4 | AK7: 10.59 | AL7: 10.6 | AM7: 10.92 | AN7: 11 | AO7: 11.05 | AP7: 11.1 | AQ7: 11.4 | AR7: 11.43 | AS7: 11.5 | AT7: 11.51 | AU7: 11.99 | AV7: 12 | AW7: 12.06 | AX7: 12.1 | AY7: 12.19 | AZ7: 12.2 | BA7: 12.4 | BB7: 12.42 | BC7: 12.57 | BD7: 12.6 | BE7: 12.65 | BF7: 12.7 | BG7: 13.06 | BH7: 13.1 | BI7: 13.7 | BJ7: 13.72 | BK7: 13.8 | BL7: 13.84 | BM7: 14.15 | BN7: 14.2 | BO7: 14.27 | BP7: 14.3 | BQ7: 15.1 | BR7: 15.11
C8: Номер шаблона для диаметра С10 | E8: Резьбовой | F8: номер | H8: Допуски на натяг по НТД | J8: расшифровка | L8: В | N8: Группа прочности | O8: H40 | P8: J55 | Q8: K55 | R8: M65 | S8: L80 | T8: L8013Cr | U8: L809Cr | V8: N80 | W8: N80-1 | X8: C90 | Y8: R95 | Z8: T95 | AA8: C110 | AB8: P110 | AC8: Q125 | AD8: Q135 | AE8: TMK140 | AF8: TMK150 | AG8: Д | AH8: Е | AI8: Л | AJ8: М | AK8: Р
E9: калибр | G9: ниж. откл. | H9: =-ROUNDDOWN(1/8*25.4,2) -> -3.17 | J9: =IF(OR(C5=168,C5=168.28,C5=168.3,C5=178,C5=177.8),(3*H6+H6+(I16/(0.0625*2)))+$F$11) -> 7.62 | K9: =IF(AND(J9="ЛОЖЬ",J10="ЛОЖЬ",J11="ЛОЖЬ"),J12,J9) -> 7.62 | N9: Признак годности | O9: годн | P9: брак
C10: Сторона трубы | F10: ниж. знач. "Натяг LC" | G10: верх. откл. | H10: =ROUNDDOWN(1/8*25.4,2) -> 3.17 | J10: =IF(OR(C5=193.68,C5=193.7,C5=194,C5=219.08,C5=219.1),(3.5*H6+H6+(I16/(0.0625*2)))+$F$11) -> FALSE
C11: ниппельная сторона | E11: по сертиф. | F11: -0.86 | J11: =IF(OR(C5=244.48,C5=244.5,C5=245)*AND(OR(F5="H40",F5="J55",F5="K55",F5="M65",F5="L80",F5="L8013Cr",F5="L809Cr",F5="N80",F5="N80-1",F5="C90",F5="R95",F5="T95",F5="C110")),(3.5*H6+H6+(I16/(0.0625*2)))+$F$11) -> FALSE
J12: =IF(OR(C5=244.48,C5=244.5,C5=245)*AND(OR(F5="P110",F5="Q125",F5="Q135")),(4*H6+H6+(I16/(0.0625*2)))+$F$11) -> FALSE
B13: Номер плавки | C13: Номер трубы | D13: Конусность резьбы на длине 25,4мм (8 ниток), мм на участке с полным профилем | F13: Расст. между делит. линией и верш. проф. рез., мм | G13: Отклонение наружного диаметра резьбы С10 в плоскости измерений L10, мм | H13: Среднеарифметическое отклонение наружного диаметра резьбы С10 в плоскости измерений L10, мм | I13: Разность максимального и минимального отклонений наружного диаметра резьбы С10 (овальность) в плоскости измерений L10, мм, не более | J13: Максимально допустимый натяг, мм с учетом овальности | K13: Фактически измеренный натяг, мм | L13: Заключение о годности
D14: =IF(C11="муфтовая сторона",ROUNDUP((0.0625-0.0026)*25.4-0.02,2),ROUNDUP((0.0625-0.0026)*25.4,2)) -> 1.53 | F14: =-ROUNDDOWN(0.0015*25.4,2) -> -0.03 | G14: — | H14: =-ROUNDDOWN(0.008*25.4,2) -> -0.2 | I14: — | J14: — | K14: =H5 -> -1.58 | L14: годн
D15: =IF(C11="муфтовая сторона",ROUNDDOWN((0.0625+0.0052)*25.4-0.02,2),ROUNDDOWN((0.0625+0.0052)*25.4,2)) -> 1.71 | F15: =ROUNDDOWN(0.0015*25.4,2) -> 0.03 | G15: — | H15: =ROUNDDOWN(0.008*25.4,2) -> 0.2 | I15: =ROUNDDOWN(IF(C11="муфтовая сторона",O15,O15*0.6),2) -> 0.3 | J15: — | K15: — | L15: брак | O15: =IF(C5=168,IF(C7>0.331*25.4,C5*0.003,C5*0.004),IF(C5=168.28,IF(C7>0.331*25.4,C5*0.003,C5*0.004),IF(C5=168.3,IF(C7>0.331*25.4,C5*0.003,C5*0.004),IF(C5=177.8,IF(C7>0.35*25.4,C5*0.003,C5*0.004),IF(C5=178,IF(C7>0.35*25.4,C5*0.003,C5*0.004),IF(C5=193.68,IF(C7>0.381*25.4,C5*0.003,C5*0.004),IF(C5=193.7,IF(C7>0.381*25.4,C5*0.003,C5*0.004),IF(C5=194,IF(C7>0.381*25.4,C5*0.003,C5*0.004),IF(C5=219,IF(C7>0.431*25.4,C5*0.003,C5*0.004),IF(C5=219.08,IF(C7>0.431*25.4,C5*0.003,C5*0.004),IF(C5=219.1,IF(C7>0.431*25.4,C5*0.003,C5*0.004),IF(C5=244.48,IF(C7>0.481*25.4,C5*0.003,C5*0.004),IF(C5=244.5,IF(C7>0.481*25.4,C5*0.003,C5*0.004),IF(C5=245,IF(C7>0.481*25.4,C5*0.003,C5*0.004),IF(C5=273,IF(C7>0.538*25.4,C5*0.003,C5*0.004),IF(C5=273.05,IF(C7>0.538*25.4,C5*0.003,C5*0.004),IF(C5=273.1,IF(C7>0.538*25.4,C5*0.003,C5*0.004),IF(C5=298.45,IF(C7>0.588*25.4,C5*0.003,C5*0.004),IF(C5=298.5,IF(C7>0.588*25.4,C5*0.003,C5*0.004),IF(C5=299,IF(C7>0.588*25.4,C5*0.003,C5*0.004),IF(C5=339.72,IF(C7>0.669*25.4,C5*0.003,C5*0.004),IF(C5=339.73,IF(C7>0.669*25.4,C5*0.003,C5*0.004),IF(C5=340,IF(C7>0.669*25.4,C5*0.003,C5*0.004)))))))))))))))))))))))) -> 0.50484
D16: 1.57 | E16: 1.57 | G16: -0.12 | H16: =(G16+G18)/2 -> 0.015 | I16: =ABS(G16-G18) -> 0.27 | J16: =2.54+(I16/(0.0625*2))+$F$11 -> 3.84 | K16: 4.7
D17: 1.59 | E17: 1.6
D18: =AVERAGE(D16:E17) -> 1.5825 | G18: 0.15
O85: Т
